[Event "Kvibergspelen 2018"]
[Site "Prioritet Serneke Arena, Krutvagen 2, Gothenburg, Sweden"]
[Date "2018.04.21"]
[Round "5.14"]
[White "Muntean, Victor"]
[Black "Arman, Deniz"]
[Result "0-1"]
[TimeControl "15 minutes + 5 seconds per move from move one (Round 1 - 4) / 90 minutes + 30 seconds per move from move one (Round 5 - 8)"]
[BlackTitle "FM"]
[WhiteFideId "1054414"]
[BlackFideId "6302106"]
[WhiteElo "1846"]
[BlackElo "2359"]

1. e4 {[%clk 01:30:57]} {[%emt 00:00:02]} d5 {[%clk 01:26:45]} {[%emt
00:04:15]} 2. exd5 {[%clk 01:31:03]} {[%emt 00:00:24]} Qxd5 {[%clk 01:27:10]}
{[%emt 00:00:05]} 3. Nc3 {[%clk 01:30:33]} {[%emt 00:01:01]} Qd6 {[%clk
01:27:35]} {[%emt 00:00:04]} 4. d4 {[%clk 01:28:59]} {[%emt 00:02:05]} Nf6
{[%clk 01:28:00]} {[%emt 00:00:04]} 5. Nb5 {[%clk 01:27:37]} {[%emt 00:01:53]}
Qb6 {[%clk 01:27:04]} {[%emt 00:01:25]} 6. c4 {[%clk 01:24:31]} {[%emt
00:03:36]} c6 {[%clk 01:27:22]} {[%emt 00:00:12]} 7. Nc3 {[%clk 01:24:55]}
{[%emt 00:00:06]} e5 {[%clk 01:25:54]} {[%emt 00:01:58]} 8. dxe5 {[%clk
01:23:14]} {[%emt 00:02:12]} Ng4 {[%clk 01:26:18]} {[%emt 00:00:05]} 9. Qe2
{[%clk 01:18:30]} {[%emt 00:05:14]} Bc5 {[%clk 01:21:18]} {[%emt 00:05:29]} 10.
Ne4 {[%clk 01:18:33]} {[%emt 00:00:27]} Bb4+ {[%clk 01:15:57]} {[%emt
00:05:51]} 11. Bd2 {[%clk 01:18:28]} {[%emt 00:00:36]} Bxd2+ {[%clk 01:12:34]}
{[%emt 00:03:52]} 12. Qxd2 {[%clk 01:18:38]} {[%emt 00:00:21]} O-O {[%clk
01:12:46]} {[%emt 00:00:17]} 13. Nf3 {[%clk 01:17:33]} {[%emt 00:01:36]} Na6
{[%clk 01:05:05]} {[%emt 00:08:11]} 14. h3 {[%clk 01:05:41]} {[%emt 00:12:22]}
Nxe5 {[%clk 00:50:08]} {[%emt 00:15:26]} 15. Nxe5 {[%clk 01:06:06]} {[%emt
00:00:05]} Re8 {[%clk 00:49:53]} {[%emt 00:00:44]} 16. Qg5 {[%clk 01:04:38]}
{[%emt 00:01:58]} Qa5+ {[%clk 00:48:07]} {[%emt 00:02:16]} 17. Kd1 {[%clk
00:57:15]} {[%emt 00:07:53]} Rxe5 {[%clk 00:47:31]} {[%emt 00:01:06]} 18. Qf4
{[%clk 00:56:41]} {[%emt 00:01:04]} Rxe4 {[%clk 00:44:38]} {[%emt 00:03:23]} 19.
Qxe4 {[%clk 00:56:29]} {[%emt 00:00:42]} Bf5 {[%clk 00:45:04]} {[%emt
00:00:03]} 20. Qf4 {[%clk 00:55:06]} {[%emt 00:01:53]} Nb4 {[%clk 00:41:48]}
{[%emt 00:03:47]} 21. Ke2 {[%clk 00:54:20]} {[%emt 00:01:16]} Nd3 {[%clk
00:21:06]} {[%emt 00:21:12]} 22. Qe3 {[%clk 00:48:46]} {[%emt 00:06:04]} Kf8
{[%clk 00:20:35]} {[%emt 00:01:01]} 23. Kf3 {[%clk 00:48:20]} {[%emt 00:00:56]}
Re8 {[%clk 00:20:12]} {[%emt 00:00:53]} 24. Qd4 {[%clk 00:48:06]} {[%emt
00:00:44]} Be4+ {[%clk 00:19:10]} {[%emt 00:01:32]} 25. Kg3 {[%clk 00:47:36]}
{[%emt 00:00:59]} Qc7+ {[%clk 00:19:25]} {[%emt 00:00:16]} 26. Kh4 {[%clk
00:47:11]} {[%emt 00:00:55]} Qf4 {[%clk 00:19:15]} {[%emt 00:00:39]} 0-1

[Event "Kvibergspelen 2018"]
[Site "Prioritet Serneke Arena, Krutvagen 2, Gothenburg, Sweden"]
[Date "2018.04.21"]
[Round "5.15"]
[White "Gutzmann, Tobias"]
[Black "Bellon Lopez, Juan"]
[Result "0-1"]
[TimeControl "15 minutes + 5 seconds per move from move one (Round 1 - 4) / 90 minutes + 30 seconds per move from move one (Round 5 - 8)"]
[BlackTitle "GM"]
[WhiteFideId "4686250"]
[BlackFideId "2200031"]
[WhiteElo "2063"]
[BlackElo "2352"]

1. e4 {[%clk 01:30:58]} {[%emt 00:00:02]} c5 {[%clk 01:30:43]} {[%emt
00:00:17]} 2. Nf3 {[%clk 01:31:21]} {[%emt 00:00:07]} e6 {[%clk 01:29:49]}
{[%emt 00:01:24]} 3. d4 {[%clk 01:31:43]} {[%emt 00:00:07]} cxd4 {[%clk
01:30:17]} {[%emt 00:00:03]} 4. c3 {[%clk 01:32:05]} {[%emt 00:00:08]} d3
{[%clk 01:30:45]} {[%emt 00:00:02]} 5. Bxd3 {[%clk 01:31:15]} {[%emt 00:01:20]}
d6 {[%clk 01:30:49]} {[%emt 00:00:24]} 6. O-O {[%clk 01:29:34]} {[%emt
00:02:11]} Qc7 {[%clk 01:30:53]} {[%emt 00:00:26]} 7. c4 {[%clk 01:26:16]}
{[%emt 00:03:49]} Nf6 {[%clk 01:30:34]} {[%emt 00:00:47]} 8. Nc3 {[%clk
01:26:30]} {[%emt 00:00:18]} a6 {[%clk 01:31:01]} {[%emt 00:00:04]} 9. Qe2
{[%clk 01:26:20]} {[%emt 00:00:39]} Nbd7 {[%clk 01:31:08]} {[%emt 00:00:22]} 10.
h3 {[%clk 01:25:03]} {[%emt 00:01:48]} b6 {[%clk 01:29:02]} {[%emt 00:02:36]}
11. Bf4 {[%clk 01:21:59]} {[%emt 00:03:34]} Ne5 {[%clk 01:24:56]} {[%emt
00:04:35]} 12. Nxe5 {[%clk 01:20:12]} {[%emt 00:02:17]} dxe5 {[%clk 01:25:02]}
{[%emt 00:00:25]} 13. Be3 {[%clk 01:19:10]} {[%emt 00:01:32]} Bc5 {[%clk
01:23:27]} {[%emt 00:02:06]} 14. Na4 {[%clk 01:14:21]} {[%emt 00:05:19]} Bxe3
{[%clk 01:14:02]} {[%emt 00:09:55]} 15. Qxe3 {[%clk 01:14:11]} {[%emt
00:00:40]} Nd7 {[%clk 01:13:58]} {[%emt 00:00:33]} 16. b4 {[%clk 01:11:35]}
{[%emt 00:03:07]} Qc6 {[%clk 01:10:16]} {[%emt 00:04:12]} 17. Nb2 {[%clk
01:09:00]} {[%emt 00:03:06]} O-O {[%clk 01:09:29]} {[%emt 00:01:16]} 18. Bc2
{[%clk 01:05:15]} {[%emt 00:04:15]} a5 {[%clk 00:58:33]} {[%emt 00:11:26]} 19.
a3 {[%clk 01:01:21]} {[%emt 00:04:25]} axb4 {[%clk 00:52:39]} {[%emt 00:06:23]}
20. axb4 {[%clk 01:01:41]} {[%emt 00:00:10]} Rxa1 {[%clk 00:49:31]} {[%emt
00:03:38]} 21. Rxa1 {[%clk 01:02:05]} {[%emt 00:00:07]} Qd6 {[%clk 00:49:54]}
{[%emt 00:00:06]} 22. Qb3 {[%clk 00:58:25]} {[%emt 00:04:10]} Qc7 {[%clk
00:49:13]} {[%emt 00:01:11]} 23. Qe3 {[%clk 00:57:46]} {[%emt 00:01:09]} Bb7
{[%clk 00:48:31]} {[%emt 00:01:11]} 24. Bb3 {[%clk 00:54:21]} {[%emt 00:03:55]}
Rd8 {[%clk 00:44:33]} {[%emt 00:04:28]} 25. Rd1 {[%clk 00:47:07]} {[%emt
00:07:45]} Nb8 {[%clk 00:44:33]} {[%emt 00:00:30]} 26. Rxd8+ {[%clk 00:47:04]}
{[%emt 00:00:33]} Qxd8 {[%clk 00:45:02]} 27. Na4 {[%clk 00:46:30]} {[%emt
00:01:05]} Nc6 {[%clk 00:44:43]} {[%emt 00:00:48]} 28. Qxb6 {[%clk 00:46:07]}
{[%emt 00:00:53]} Qxb6 {[%clk 00:44:55]} {[%emt 00:00:18]} 29. Nxb6 {[%clk
00:46:35]} {[%emt 00:00:02]} Nxb4 {[%clk 00:45:14]} {[%emt 00:00:11]} 30. f3
{[%clk 00:46:10]} {[%emt 00:00:55]} f6 {[%clk 00:42:13]} {[%emt 00:03:29]} 31.
Ba4 {[%clk 00:35:58]} {[%emt 00:10:42]} Kf7 {[%clk 00:39:55]} {[%emt 00:02:48]}
32. Kf2 {[%clk 00:32:26]} {[%emt 00:04:00]} Ke7 {[%clk 00:35:54]} {[%emt
00:04:33]} 33. Ke3 {[%clk 00:30:24]} {[%emt 00:02:33]} Kd6 {[%clk 00:36:14]}
{[%emt 00:00:08]} 34. Nd7 {[%clk 00:21:44]} {[%emt 00:09:12]} Bc6 {[%clk
00:32:13]} {[%emt 00:04:31]} 35. Bxc6 {[%clk 00:22:03]} {[%emt 00:00:11]} Nxc6
{[%clk 00:31:58]} {[%emt 00:00:45]} 36. Nb6 {[%clk 00:21:32]} {[%emt 00:01:02]}
Kc5 {[%clk 00:31:59]} {[%emt 00:00:28]} 37. Nd7+ {[%clk 00:21:58]} {[%emt
00:00:05]} Kd6 {[%clk 00:20:29]} {[%emt 00:11:59]} 38. Nb6 {[%clk 00:22:26]}
{[%emt 00:00:02]} f5 {[%clk 00:19:05]} {[%emt 00:01:55]} 39. Na4 {[%clk
00:20:29]} {[%emt 00:02:27]} f4+ {[%clk 00:19:26]} {[%emt 00:00:08]} 40. Kf2
{[%clk 00:20:03]} {[%emt 00:00:56]} Na5 {[%clk 00:18:32]} {[%emt 00:01:24]} 41.
Nb6 {[%clk 00:17:32]} {[%emt 00:03:01]} Kc6 {[%clk 00:18:33]} {[%emt 00:00:27]}
42. c5 {[%clk 00:16:53]} {[%emt 00:01:11]} Kxc5 {[%clk 00:18:20]} {[%emt
00:00:43]} 43. Nd7+ {[%clk 00:17:08]} {[%emt 00:00:14]} Kd6 {[%clk 00:18:30]}
{[%emt 00:00:19]} 44. Nb6 {[%clk 00:15:43]} {[%emt 00:01:56]} Kc6 {[%clk
00:18:38]} {[%emt 00:00:21]} 45. Na4 {[%clk 00:14:42]} {[%emt 00:01:33]} Kb5
{[%clk 00:16:30]} {[%emt 00:02:37]} 46. Nb2 {[%clk 00:15:10]} {[%emt 00:00:02]}
Nc6 {[%clk 00:16:39]} {[%emt 00:00:21]} 47. Ke2 {[%clk 00:14:46]} {[%emt
00:00:54]} g5 {[%clk 00:16:30]} {[%emt 00:00:40]} 48. Kd3 {[%clk 00:14:30]}
{[%emt 00:00:46]} Ne7 {[%clk 00:16:26]} {[%emt 00:00:33]} 49. Nc4 {[%clk
00:14:22]} {[%emt 00:00:38]} Ng6 {[%clk 00:16:24]} {[%emt 00:00:33]} 50. Nd6+
{[%clk 00:14:38]} {[%emt 00:00:14]} Kc6 {[%clk 00:13:53]} {[%emt 00:03:01]} 51.
Nf7 {[%clk 00:14:27]} {[%emt 00:00:42]} Kd7 {[%clk 00:13:14]} {[%emt 00:01:09]}
52. Nxg5 {[%clk 00:14:26]} {[%emt 00:00:30]} h5 {[%clk 00:13:13]} {[%emt
00:00:32]} 53. h4 {[%clk 00:12:25]} {[%emt 00:02:31]} Nxh4 {[%clk 00:13:30]}
{[%emt 00:00:13]} 54. Nf7 {[%clk 00:12:46]} {[%emt 00:00:09]} Nxg2 {[%clk
00:11:26]} {[%emt 00:02:33]} 55. Nxe5+ {[%clk 00:13:12]} {[%emt 00:00:04]} Kd6
{[%clk 00:10:38]} {[%emt 00:01:19]} 56. Nf7+ {[%clk 00:12:55]} {[%emt
00:00:47]} Ke7 {[%clk 00:10:26]} {[%emt 00:00:41]} 57. Ng5 {[%clk 00:13:19]}
{[%emt 00:00:07]} Kf6 {[%clk 00:10:25]} {[%emt 00:00:31]} 58. Nh3 {[%clk
00:13:42]} {[%emt 00:00:06]} e5 {[%clk 00:09:45]} {[%emt 00:00:39]} 59. Ke2
{[%clk 00:13:20]} {[%emt 00:00:53]} Ne3 {[%clk 00:10:26]} {[%emt 00:00:18]} 60.
Kf2 {[%clk 00:13:13]} {[%emt 00:00:39]} Nc2 {[%clk 00:10:39]} {[%emt 00:00:17]}
61. Kg2 {[%clk 00:11:52]} {[%emt 00:01:50]} Nd4 {[%clk 00:11:06]} {[%emt
00:00:04]} 62. Kf2 {[%clk 00:12:18]} {[%emt 00:00:04]} Ne6 {[%clk 00:11:20]}
{[%emt 00:00:16]} 63. Kg2 {[%clk 00:12:42]} {[%emt 00:00:05]} Ke7 {[%clk
00:11:33]} {[%emt 00:00:17]} 64. Ng1 {[%clk 00:12:24]} {[%emt 00:00:48]} Ng5
{[%clk 00:11:07]} {[%emt 00:00:56]} 65. Ne2 {[%clk 00:11:38]} {[%emt 00:01:16]}
Kd6 {[%clk 00:11:25]} {[%emt 00:00:12]} 66. Nc3 {[%clk 00:11:51]} {[%emt
00:00:17]} Kc5 {[%clk 00:11:30]} {[%emt 00:00:26]} 67. Nd5 {[%clk 00:12:16]}
{[%emt 00:00:04]} Kd4 {[%clk 00:10:44]} {[%emt 00:01:16]} 68. Kf2 {[%clk
00:11:21]} {[%emt 00:01:25]} h4 {[%clk 00:10:36]} {[%emt 00:00:38]} 69. Ne7
{[%clk 00:10:10]} {[%emt 00:01:42]} Nxe4+ {[%clk 00:09:10]} {[%emt 00:01:57]}
70. Kg2 {[%clk 00:10:32]} {[%emt 00:00:07]} Ng5 {[%clk 00:08:00]} {[%emt
00:01:40]} 71. Ng6 {[%clk 00:08:09]} {[%emt 00:02:53]} h3+ {[%clk 00:08:07]}
{[%emt 00:00:22]} 72. Kh2 {[%clk 00:08:21]} {[%emt 00:00:19]} Ke3 {[%clk
00:07:52]} {[%emt 00:00:44]} 0-1

[Event "Kvibergspelen 2018"]
[Site "Prioritet Serneke Arena, Krutvagen 2, Gothenburg, Sweden"]
[Date "2018.04.21"]
[Round "5.16"]
[White "Naslund, Mikael"]
[Black "Kardell, Mathias"]
[Result "1/2-1/2"]
[TimeControl "15 minutes + 5 seconds per move from move one (Round 1 - 4) / 90 minutes + 30 seconds per move from move one (Round 5 - 8)"]
[WhiteTitle "FM"]
[WhiteFideId "1708260"]
[BlackFideId "1710109"]
[WhiteElo "2224"]
[BlackElo "2057"]

1. d4 {[%clk 01:30:58]} d5 {[%clk 01:30:51]} {[%emt 00:00:09]} 2. c4 {[%clk
01:31:21]} {[%emt 00:00:07]} e6 {[%clk 01:31:14]} {[%emt 00:00:07]} 3. Nf3
{[%clk 01:31:25]} {[%emt 00:00:26]} c6 {[%clk 01:31:32]} {[%emt 00:00:12]} 4.
Nc3 {[%clk 01:31:18]} {[%emt 00:00:37]} Nf6 {[%clk 01:31:36]} {[%emt 00:00:26]}
5. Bg5 {[%clk 01:31:41]} {[%emt 00:00:06]} Be7 {[%clk 01:31:49]} {[%emt
00:00:18]} 6. e3 {[%clk 01:31:54]} {[%emt 00:00:17]} Nbd7 {[%clk 01:31:40]}
{[%emt 00:00:38]} 7. Qc2 {[%clk 01:32:12]} {[%emt 00:00:12]} O-O {[%clk
01:31:27]} {[%emt 00:00:43]} 8. Rd1 {[%clk 01:32:25]} {[%emt 00:00:17]} Re8
{[%clk 01:29:06]} {[%emt 00:02:51]} 9. a3 {[%clk 01:30:32]} {[%emt 00:02:24]}
Nb6 {[%clk 01:24:57]} {[%emt 00:04:39]} 10. c5 {[%clk 01:26:35]} {[%emt
00:04:28]} Nbd7 {[%clk 01:25:12]} {[%emt 00:00:15]} 11. Bd3 {[%clk 01:24:54]}
{[%emt 00:02:10]} h6 {[%clk 01:24:03]} {[%emt 00:01:39]} 12. Bh4 {[%clk
01:24:33]} {[%emt 00:00:51]} e5 {[%clk 01:05:03]} {[%emt 00:19:31]} 13. dxe5
{[%clk 01:13:40]} {[%emt 00:11:23]} Ng4 {[%clk 01:03:27]} {[%emt 00:02:05]} 14.
Bxe7 {[%clk 00:55:18]} {[%emt 00:18:52]} Qxe7 {[%clk 01:01:10]} {[%emt
00:02:47]} 15. b4 {[%clk 00:54:06]} {[%emt 00:01:42]} Ndxe5 {[%clk 01:00:09]}
{[%emt 00:01:31]} 16. Nxe5 {[%clk 00:49:28]} {[%emt 00:05:08]} Qxe5 {[%clk
00:57:43]} {[%emt 00:02:56]} 17. h3 {[%clk 00:41:12]} {[%emt 00:08:46]} Nf6
{[%clk 00:44:10]} {[%emt 00:14:03]} 18. O-O {[%clk 00:41:29]} {[%emt 00:00:13]}
Qg5 {[%clk 00:43:36]} {[%emt 00:01:02]} 19. f4 {[%clk 00:30:28]} {[%emt
00:11:32]} Qh4 {[%clk 00:41:53]} {[%emt 00:02:13]} 20. e4 {[%clk 00:29:22]}
{[%emt 00:01:37]} dxe4 {[%clk 00:30:33]} {[%emt 00:11:50]} 21. Bxe4 {[%clk
00:24:16]} {[%emt 00:05:37]} Be6 {[%clk 00:28:18]} {[%emt 00:02:44]} 22. Qf2
{[%clk 00:21:38]} {[%emt 00:03:08]} Qxf2+ {[%clk 00:27:28]} {[%emt 00:01:21]}
23. Kxf2 {[%clk 00:19:57]} {[%emt 00:02:11]} Bb3 {[%clk 00:26:46]} {[%emt
00:01:12]} 24. Rd4 {[%clk 00:19:24]} {[%emt 00:01:02]} Rad8 {[%clk 00:25:58]}
{[%emt 00:01:18]} 25. Rxd8 {[%clk 00:19:14]} {[%emt 00:00:41]} 1/2-1/2

[Event "Kvibergspelen 2018"]
[Site "Prioritet Serneke Arena, Krutvagen 2, Gothenburg, Sweden"]
[Date "2018.04.21"]
[Round "5.17"]
[White "Jonsson, Krister"]
[Black "Ronneland, Daniel"]
[Result "0-1"]
[TimeControl "15 minutes + 5 seconds per move from move one (Round 1 - 4) / 90 minutes + 30 seconds per move from move one (Round 5 - 8)"]
[WhiteFideId "1708023"]
[BlackFideId "1702130"]
[WhiteElo "2047"]
[BlackElo "2201"]

1. Nf3 {[%clk 01:30:55]} {[%emt 00:00:03]} d5 {[%clk 01:29:58]} {[%emt
00:01:02]} 2. c4 {[%clk 01:31:11]} {[%emt 00:00:14]} c6 {[%clk 01:29:44]}
{[%emt 00:00:45]} 3. d4 {[%clk 01:30:52]} {[%emt 00:00:49]} dxc4 {[%clk
01:19:27]} {[%emt 00:10:47]} 4. a4 {[%clk 01:29:04]} {[%emt 00:02:18]} Nf6
{[%clk 01:17:30]} {[%emt 00:02:26]} 5. Nc3 {[%clk 01:28:15]} {[%emt 00:01:20]}
Bf5 {[%clk 01:17:24]} {[%emt 00:00:35]} 6. e3 {[%clk 01:28:31]} {[%emt
00:00:15]} e6 {[%clk 01:17:47]} {[%emt 00:00:07]} 7. Bxc4 {[%clk 01:28:51]}
{[%emt 00:00:11]} Bb4 {[%clk 01:18:11]} {[%emt 00:00:06]} 8. O-O {[%clk
01:28:57]} {[%emt 00:00:25]} O-O {[%clk 01:17:58]} {[%emt 00:00:43]} 9. Nh4
{[%clk 01:25:16]} {[%emt 00:04:10]} Nbd7 {[%clk 01:15:28]} {[%emt 00:03:00]} 10.
Nxf5 {[%clk 01:24:44]} {[%emt 00:01:02]} exf5 {[%clk 01:15:40]} {[%emt
00:00:18]} 11. Qc2 {[%clk 01:24:52]} {[%emt 00:00:22]} g6 {[%clk 01:14:51]}
{[%emt 00:01:19]} 12. Rd1 {[%clk 01:18:08]} {[%emt 00:07:14]} Nb6 {[%clk
01:10:46]} {[%emt 00:04:35]} 13. Bb3 {[%clk 01:17:25]} {[%emt 00:01:14]} a5
{[%clk 01:09:01]} {[%emt 00:02:15]} 14. f3 {[%clk 01:03:33]} {[%emt 00:14:22]}
Re8 {[%clk 01:05:42]} {[%emt 00:03:48]} 15. Qf2 {[%clk 01:03:32]} {[%emt
00:00:31]} Nbd5 {[%clk 01:03:05]} {[%emt 00:03:07]} 16. Bd2 {[%clk 01:02:40]}
{[%emt 00:01:22]} Qb6 {[%clk 01:01:11]} {[%emt 00:02:21]} 17. Bc4 {[%clk
00:48:06]} {[%emt 00:15:08]} Rad8 {[%clk 00:55:32]} {[%emt 00:06:09]} 18. Re1
{[%clk 00:43:34]} {[%emt 00:05:01]} Bf8 {[%clk 00:52:01]} {[%emt 00:04:00]} 19.
e4 {[%clk 00:32:08]} {[%emt 00:11:57]} Nb4 {[%clk 00:48:12]} {[%emt 00:04:19]}
20. Be3 {[%clk 00:30:52]} {[%emt 00:01:46]} f4 {[%clk 00:47:19]} {[%emt
00:01:23]} 21. Bxf4 {[%clk 00:28:43]} {[%emt 00:02:39]} Qxd4 {[%clk 00:47:32]}
{[%emt 00:00:16]} 22. Qxd4 {[%clk 00:24:49]} {[%emt 00:04:26]} Rxd4 {[%clk
00:47:50]} {[%emt 00:00:12]} 23. Bf1 {[%clk 00:25:02]} {[%emt 00:00:17]} Nc2
{[%clk 00:46:07]} {[%emt 00:02:12]} 24. Bg5 {[%clk 00:16:25]} {[%emt 00:09:08]}
Nd7 {[%clk 00:42:28]} {[%emt 00:04:08]} 25. Ne2 {[%clk 00:14:23]} {[%emt
00:02:32]} Rb4 {[%clk 00:40:57]} {[%emt 00:02:01]} 26. Red1 {[%clk 00:14:29]}
{[%emt 00:00:25]} Nxa1 {[%clk 00:40:27]} {[%emt 00:01:00]} 27. Rxd7 {[%clk
00:14:45]} {[%emt 00:00:14]} Nc2 {[%clk 00:39:04]} {[%emt 00:01:52]} 28. Nc1
{[%clk 00:14:23]} {[%emt 00:00:53]} Bc5+ {[%clk 00:38:46]} {[%emt 00:00:47]} 29.
Kh1 {[%clk 00:14:48]} {[%emt 00:00:05]} Be3 {[%clk 00:38:08]} {[%emt 00:01:08]}
30. Bxe3 {[%clk 00:14:18]} {[%emt 00:01:01]} Nxe3 {[%clk 00:38:33]} {[%emt
00:00:05]} 31. Bd3 {[%clk 00:14:29]} {[%emt 00:00:19]} Rxb2 {[%clk 00:38:33]}
{[%emt 00:00:28]} 0-1

[Event "Kvibergspelen 2018"]
[Site "Prioritet Serneke Arena, Krutvagen 2, Gothenburg, Sweden"]
[Date "2018.04.21"]
[Round "5.18"]
[White "Troberg Eskola, Love"]
[Black "Fransson, Patrick"]
[Result "1/2-1/2"]
[TimeControl "15 minutes + 5 seconds per move from move one (Round 1 - 4) / 90 minutes + 30 seconds per move from move one (Round 5 - 8)"]
[WhiteFideId "1724185"]
[BlackFideId "1709305"]
[WhiteElo "2045"]
[BlackElo "2176"]

1. e4 {[%clk 01:30:58]} {[%emt 00:00:02]} e6 {[%clk 01:30:30]} {[%emt
00:00:29]} 2. d4 {[%clk 01:31:22]} {[%emt 00:00:07]} d5 {[%clk 01:30:56]}
{[%emt 00:00:03]} 3. Nd2 {[%clk 01:31:39]} {[%emt 00:00:12]} Nf6 {[%clk
01:31:19]} {[%emt 00:00:07]} 4. e5 {[%clk 01:32:05]} {[%emt 00:00:04]} Nfd7
{[%clk 01:31:44]} {[%emt 00:00:04]} 5. Bd3 {[%clk 01:32:20]} {[%emt 00:00:16]}
c5 {[%clk 01:31:55]} {[%emt 00:00:19]} 6. c3 {[%clk 01:32:46]} {[%emt
00:00:04]} Nc6 {[%clk 01:32:11]} {[%emt 00:00:13]} 7. Ngf3 {[%clk 01:33:11]}
{[%emt 00:00:05]} Be7 {[%clk 01:29:35]} {[%emt 00:03:06]} 8. O-O {[%clk
01:30:19]} {[%emt 00:03:23]} O-O {[%clk 01:26:03]} {[%emt 00:04:01]} 9. Re1
{[%clk 01:25:02]} {[%emt 00:05:47]} cxd4 {[%clk 01:24:08]} {[%emt 00:02:26]} 10.
cxd4 {[%clk 01:25:23]} {[%emt 00:00:08]} Re8 {[%clk 01:22:25]} {[%emt
00:02:13]} 11. Nf1 {[%clk 01:12:43]} {[%emt 00:13:10]} Nf8 {[%clk 01:15:30]}
{[%emt 00:07:24]} 12. Bd2 {[%clk 01:08:34]} {[%emt 00:04:39]} f5 {[%clk
01:11:47]} {[%emt 00:04:13]} 13. exf6 {[%clk 01:06:35]} {[%emt 00:02:30]} gxf6
{[%clk 01:09:39]} {[%emt 00:02:38]} 14. Bc3 {[%clk 01:04:16]} {[%emt 00:02:49]}
Bd6 {[%clk 01:08:00]} {[%emt 00:02:09]} 15. Ne3 {[%clk 01:00:29]} {[%emt
00:04:17]} Re7 {[%clk 00:57:44]} {[%emt 00:10:44]} 16. Ng4 {[%clk 00:59:29]}
{[%emt 00:01:31]} Rg7 {[%clk 00:56:58]} {[%emt 00:01:14]} 17. h3 {[%clk
00:57:01]} {[%emt 00:03:00]} f5 {[%clk 00:52:38]} {[%emt 00:04:49]} 18. Nge5
{[%clk 00:56:03]} {[%emt 00:01:29]} Ng6 {[%clk 00:46:53]} {[%emt 00:06:15]} 19.
Nxg6 {[%clk 00:52:23]} {[%emt 00:04:09]} hxg6 {[%clk 00:45:00]} {[%emt
00:02:23]} 20. h4 {[%clk 00:51:09]} {[%emt 00:01:45]} Be7 {[%clk 00:43:59]}
{[%emt 00:01:31]} 21. g3 {[%clk 00:50:45]} {[%emt 00:00:55]} g5 {[%clk
00:43:57]} {[%emt 00:00:31]} 22. Nxg5 {[%clk 00:48:54]} {[%emt 00:02:21]} Bxg5
{[%clk 00:44:04]} {[%emt 00:00:24]} 23. hxg5 {[%clk 00:49:22]} Qxg5 {[%clk
00:43:52]} {[%emt 00:00:42]} 24. Kf1 {[%clk 00:34:28]} {[%emt 00:15:24]} f4
{[%clk 00:37:35]} {[%emt 00:06:48]} 25. Bd2 {[%clk 00:33:47]} {[%emt 00:01:12]}
e5 {[%clk 00:34:04]} {[%emt 00:04:00]} 26. dxe5 {[%clk 00:28:56]} {[%emt
00:05:20]} Bh3+ {[%clk 00:28:56]} {[%emt 00:05:38]} 27. Kg1 {[%clk 00:29:20]}
{[%emt 00:00:06]} Rf8 {[%clk 00:22:13]} {[%emt 00:07:13]} 28. Qf3 {[%clk
00:27:35]} {[%emt 00:02:14]} Be6 {[%clk 00:22:29]} {[%emt 00:00:14]} 29. Bf1
{[%clk 00:25:36]} {[%emt 00:02:30]} Qh4 {[%clk 00:21:37]} {[%emt 00:01:22]} 30.
Qh1 {[%clk 00:21:23]} {[%emt 00:04:43]} Qg4 {[%clk 00:20:42]} {[%emt 00:01:24]}
31. Be2 {[%clk 00:19:47]} {[%emt 00:02:07]} Qf5 {[%clk 00:20:09]} {[%emt
00:01:02]} 32. Qh5 {[%clk 00:18:21]} {[%emt 00:01:58]} Rg5 {[%clk 00:16:44]}
{[%emt 00:03:54]} 33. g4 {[%clk 00:15:58]} {[%emt 00:02:53]} Rxh5 {[%clk
00:12:58]} {[%emt 00:04:16]} 34. gxf5 {[%clk 00:16:18]} {[%emt 00:00:10]} Rhxf5
{[%clk 00:13:06]} {[%emt 00:00:22]} 35. f3 {[%clk 00:15:30]} {[%emt 00:01:18]}
Nxe5 {[%clk 00:10:26]} {[%emt 00:03:10]} 36. Kf2 {[%clk 00:14:40]} {[%emt
00:01:19]} Kf7 {[%clk 00:09:30]} {[%emt 00:01:26]} 37. Rh1 {[%clk 00:14:39]}
{[%emt 00:00:31]} Rg8 {[%emt 00:01:35]} 38. Rh4 {[%emt 00:00:12]} Ng6 {[%emt
00:00:08]} 39. Rhh1 {[%emt 00:00:04]} 1/2-1/2